bitfinex/quotes_SOLUSD_20250626
["timestamp","ask_amount","ask_price","bid_price","bid_amount"]
[1750951765791,0.14216157,142.35,142.21,8.96]
[1750951766259,5.17566173,142.35,142.22,34.75230274]
[1750951766460,5.17566173,142.35,142.22,18.64964886]
[1750951766461,5.17616408,142.35,142.22,18.64964886]
[1750951766655,0.14216157,142.33,142.21,8.96]
[1750951766854,18.79181043,142.33,142.21,8.96]
[1750951767090,18.79181043,142.33,142.17,1.481037]
[1750951767091,0.14216157,142.33,142.18,7.03333802]
[1750951767296,6.2512,142.34,142.24,16.10265388]
[1750951767460,6.2512,142.34,142.2,18.64964886]
[1750951767664,18.64964886,142.31,142.17,1.481037]
[1750951767972,18.79181043,142.31,142.17,1.481037]
[1750951768973,18.79181043,142.29,142.17,1.481037]
[1750951769390,18.79181043,142.27,142.17,1.481037]
[1750951769690,0.14216157,142.25,142.17,1.481037]
[1750951769876,6.256,142.28,142.17,1.481037]
[1750951770057,0.14216157,142.26,142.17,1.481037]
[1750951770381,6.256,142.28,142.22,16.10265388]
[1750951770682,6.256,142.28,142.19,13.08]
[1750951771297,6.256,142.28,142.17,1.62319857]
[1750951771298,0.14216157,142.26,142.17,1.481037]
[1750951771661,30.85547313,142.28,142.17,1.481037]
[1750951771979,0.14216157,142.27,142.17,1.481037]
[1750951772490,6.256,142.28,142.18,18.64964886]
[1750951772702,27.370122,142.28,142.18,18.64964886]
[1750951772857,6.256,142.28,142.19,0.14216157]
[1750951773063,6.256,142.28,142.21,16.10265388]
[1750951773296,6.256,142.28,142.18,25.68284338]
[1750951773596,1.627,142.32,142.19,13.64216157]
[1750951773987,29.75864728,142.32,142.23,16.10265388]
[1750951774278,29.75864728,142.32,142.2,18.64964886]
[1750951774760,29.75864728,142.32,142.23,16.10265388]
[1750951775272,29.75864728,142.32,142.22,16.10265388]
[1750951775590,8.65343728,142.32,142.23,16.10265388]
[1750951775885,29.18618728,142.32,142.22,16.10265388]
[1750951776064,18.79181043,142.31,142.19,13.5]
[1750951776271,18.79181043,142.31,142.2,16.10265388]
[1750951776473,0.14216157,142.31,142.2,34.75230274]
[1750951776672,0.14216157,142.31,142.21,16.10265388]
[1750951776867,7.02740688,142.3,142.21,16.10265388]
[1750951777069,7.02740688,142.3,142.21,18.64964886]
[1750951777278,7.02740688,142.3,142.22,16.10265388]
[1750951777880,7.02740688,142.3,142.21,16.10265388]
[1750951778386,24.59419576,142.31,142.21,16.10265388]
[1750951779883,24.59419576,142.31,142.2,18.64964886]
[1750951780086,24.59419576,142.31,142.21,16.10265388]
[1750951780470,24.59419576,142.31,142.22,16.10265388]
[1750951780797,7.02691307,142.31,142.2,18.64964886]
[1750951781004,7.02691307,142.31,142.24,16.10265388]
[1750951781178,7.02691307,142.31,142.2,18.64964886]
[1750951781692,7.02691307,142.31,142.2,25.68191779]
[1750951782574,7.02691307,142.31,142.21,0.14216157]
[1750951782771,8.65347475,142.32,142.21,7.17370608]
[1750951782970,6.048,142.34,142.24,0.14216157]
[1750951783280,6.048,142.34,142.22,18.79181043]
[1750951783482,6.048,142.34,142.23,0.14216157]
[1750951783686,6.048,142.34,142.26,16.10265388]
[1750951783887,13.07355989,142.34,142.22,18.64964886]
[1750951784082,13.07355989,142.34,142.24,16.10265388]
[1750951784389,13.07355989,142.34,142.26,16.10265388]
[1750951784594,13.07355989,142.34,142.27,16.10265388]
[1750951784768,13.07355989,142.34,142.26,16.10265388]
[1750951785289,6.048,142.34,142.28,16.10265388]
[1750951785682,6.048,142.34,142.25,0.14216157]
[1750951785883,6.048,142.34,142.29,16.10265388]
[1750951786184,0.5,142.33,142.29,16.10265388]
[1750951786390,0.5,142.33,142.25,0.14216157]
[1750951786777,13.07349873,142.34,142.25,0.14216157]
[1750951786979,6.048,142.34,142.26,18.64964886]
[1750951787186,13.07350606,142.34,142.24,7.03023906]
[1750951787373,13.07350606,142.34,142.23,7.03081365]
[1750951787573,13.07350606,142.34,142.24,18.64964886]
[1750951787877,13.07350606,142.34,142.21,13.52]
[1750951788090,30.63358206,142.34,142.22,0.14216157]
[1750951788292,13.07350606,142.34,142.22,18.79181043]
[1750951788683,34.17277806,142.34,142.22,25.82316903]
[1750951788882,51.73635822,142.34,142.22,18.64964886]
[1750951789283,51.73635822,142.34,142.21,13.52]
[1750951789671,51.73635822,142.34,142.22,18.64964886]
[1750951790185,34.17277806,142.34,142.26,16.10265388]
[1750951790495,34.17277806,142.34,142.22,18.64964886]
[1750951790902,34.17277806,142.34,142.22,25.68088854]
[1750951791479,34.17277806,142.34,142.25,16.10265388]
[1750951791681,34.17277806,142.34,142.22,25.68088854]
[1750951791977,34.17277806,142.34,142.22,18.64964886]
[1750951792182,34.17277806,142.34,142.26,16.10265388]
[1750951792389,34.17277806,142.34,142.22,18.64964886]
[1750951792994,34.17277806,142.34,142.22,25.68083909]
[1750951793199,34.17277806,142.34,142.22,25.68084095]
[1750951793982,51.73635822,142.34,142.23,16.10265388]
[1750951794202,51.73635822,142.34,142.22,18.64964886]
[1750951794882,51.73635822,142.34,142.25,10.18508264]
[1750951795083,34.17277806,142.34,142.22,25.68090378]
[1750951795787,51.73635822,142.34,142.23,10.18508264]
[1750951796002,51.73635822,142.34,142.25,10.18508264]
[1750951796204,51.73635822,142.34,142.22,18.64964886]
[1750951796398,51.73635822,142.34,142.22,25.68100196]
[1750951796589,51.73635822,142.34,142.28,10.18508264]
[1750951796590,6.048,142.34,142.28,10.18508264]
[1750951797604,13.07346925,142.34,142.23,18.64964886]
[1750951797802,0.5,142.33,142.21,20.55167677]
[1750951798005,0.5,142.33,142.23,10.18508264]
[1750951798180,0.5,142.33,142.22,10.18508264]
[1750951798381,0.5,142.33,142.23,10.18508264]
[1750951798576,0.5,142.33,142.21,13.52]
[1750951799002,0.5,142.33,142.18,18.64964886]
[1750951799003,1.6285,142.31,142.18,18.64964886]
[1750951799203,7.02740688,142.3,142.18,18.64964886]
[1750951799408,24.59592409,142.3,142.17,33.101037]
[1750951799624,6.4874,142.29,142.19,10.18508264]
[1750951799796,6.4874,142.29,142.17,8.51483698]
[1750951799996,6.4874,142.29,142.22,10.18508264]
[1750951800185,6.4874,142.29,142.18,18.79181043]
[1750951800621,6.4874,142.29,142.17,1.481037]
[1750951800785,0.14216157,142.28,142.17,1.481037]
[1750951800989,6.4494,142.27,142.17,1.481037]
[1750951801195,7.0303712,142.24,142.17,1.481037]
[1750951801393,46.7503712,142.24,142.17,1.481037]
[1750951801890,39.72,142.24,142.17,11.66611964]
[1750951802094,6.4494,142.27,142.23,10.18508264]
[1750951802296,6.2472,142.31,142.21,19.49499585]
[1750951802523,6.2472,142.31,142.28,10.18508264]
[1750951802724,19.228428,142.34,142.21,29.49499585]
[1750951802926,1.6415,142.34,142.21,29.49499585]
[1750951803104,1.6415,142.34,142.22,7.03135986]
[1750951803307,1.6415,142.34,142.28,10.18508264]
[1750951803503,27.112405,142.35,142.24,18.64964886]
[1750951803504,6.0161,142.35,142.26,18.79181043]
[1750951804399,6.4134287,142.38,142.32,16.08350381]
[1750951804593,6.4134287,142.38,142.33,16.08350381]
[1750951804899,6.4134287,142.38,142.34,16.08350381]
[1750951805207,6.4134287,142.37,142.33,16.08350381]
[1750951805630,6.4134287,142.36,142.34,16.08350381]
[1750951805926,6.4134287,142.38,142.35,16.08350381]
[1750951806136,6.4134287,142.36,142.34,16.08350381]
[1750951806308,6.4134287,142.36,142.31,0.14216157]
[1750951806827,11.49678629,142.35,142.31,0.14216157]
[1750951807130,11.49678629,142.34,142.31,0.14216157]
[1750951807304,11.49678629,142.35,142.32,18.79181043]
[1750951807500,11.49678629,142.38,142.32,18.64964886]
[1750951807701,11.49678629,142.39,142.32,18.64964886]
[1750951807928,11.49678629,142.4,142.32,18.64964886]
[1750951808231,11.49678629,142.39,142.32,18.64964886]
[1750951808426,5.08335759,142.38,142.32,18.64964886]
[1750951808636,5.08335759,142.37,142.31,18.79181043]
[1750951808839,11.49678629,142.39,142.31,18.79181043]
[1750951809015,5.08335759,142.38,142.31,18.79181043]
[1750951809215,5.08335759,142.37,142.31,0.14216157]
[1750951809420,5.08335759,142.36,142.33,16.08350381]
[1750951809741,5.08335759,142.37,142.28,18.79181043]
[1750951809910,5.08335759,142.36,142.28,25.81981824]
[1750951810106,5.08335759,142.37,142.28,25.81981824]
[1750951810535,12.10684621,142.38,142.31,16.08350381]
[1750951810720,12.10684621,142.38,142.28,18.64964886]
[1750951810920,12.10684621,142.38,142.29,0.14216157]
[1750951811323,12.10684621,142.38,142.27,18.64964886]
[1750951811517,12.10684621,142.38,142.28,0.14216157]
[1750951812135,7.02348862,142.38,142.3,16.08350381]
[1750951812441,7.7519,142.37,142.19,6.3065]
[1750951812745,7.7519,142.37,142.2,16.08350381]
[1750951812746,18.64964886,142.35,142.2,16.08350381]
[1750951812947,30.14643515,142.35,142.2,16.08350381]
[1750951813164,30.14643515,142.35,142.18,7.03333802]
[1750951813165,25.06307756,142.35,142.21,16.08350381]
[1750951813313,40.67251622,142.34,142.22,16.08350381]
[1750951813509,5.08335759,142.33,142.21,18.64964886]
[1750951813737,12.10815996,142.36,142.27,16.08350381]
[1750951813935,7.02480237,142.36,142.25,0.14216157]
[1750951814120,18.649649,142.35,142.21,18.64964886]
[1750951814322,23.73300659,142.35,142.21,18.64964886]
[1750951814627,23.73300659,142.35,142.22,0.14216157]
[1750951815022,23.73300659,142.35,142.25,16.08350381]
[1750951815217,23.73300659,142.35,142.3,16.08350381]
[1750951815419,18.649649,142.35,142.26,7.87448267]
[1750951815617,18.649649,142.35,142.28,0.14216157]
[1750951816231,18.649649,142.35,142.3,16.08350381]
[1750951816440,18.649649,142.35,142.32,16.08350381]
[1750951816612,18.649649,142.35,142.29,0.14216157]
[1750951816926,18.649649,142.35,142.31,0.14216157]
[1750951817314,18.649649,142.35,142.32,7.02595673]
[1750951817529,6.5226,142.41,142.32,7.02595673]
[1750951817915,6.5226,142.41,142.33,0.14216157]
[1750951818323,6.5226,142.41,142.31,18.64964886]
[1750951818655,1.5526,142.35,142.17,8.5147163]
[1750951818834,8.1707,142.33,142.17,1.481037]
[1750951819016,6.6181,142.32,142.17,1.481037]
[1750951819216,18.18933191,142.32,142.17,1.481037]
[1750951819451,7.02740688,142.3,142.17,1.481037]
[1750951819654,24.59592409,142.3,142.2,16.08350381]
[1750951820015,24.59592409,142.3,142.17,2.18442027]
[1750951820214,6.6181,142.29,142.17,1.481037]
[1750951821324,7.02888873,142.27,142.17,1.481037]
[1750951821531,1.5567,142.26,142.17,1.481037]
[1750951821768,6.5929,142.25,142.17,1.481037]
[1750951822056,42.36,142.24,142.17,1.481037]
[1750951822924,6.4052,142.22,142.16,0.02]
[1750951823139,19.49081043,142.21,142.13,0.02]
[1750951823346,0.699,142.21,142.13,0.02]
[1750951823544,0.699,142.21,142.14,16.08350381]
[1750951823949,0.699,142.21,142.13,0.02]
[1750951824144,49.0452,142.22,142.13,0.02]
[1750951824145,6.4052,142.22,142.13,0.02]
[1750951824545,6.4052,142.22,142.14,0.14216157]
[1750951825057,6.4052,142.22,142.15,16.08350381]
[1750951825231,6.4052,142.22,142.13,0.02]
[1750951825431,6.4052,142.22,142.16,16.08350381]
[1750951825630,6.4052,142.22,142.13,7.05581228]
[1750951825855,6.4052,142.22,142.13,0.02]
[1750951826266,6.4052,142.22,142.15,16.08350381]
[1750951826466,6.4052,142.22,142.13,0.02]
[1750951826635,6.4052,142.22,142.17,16.08350381]
[1750951826964,6.4052,142.22,142.14,0.14216157]
[1750951827454,6.4052,142.22,142.16,16.08350381]
[1750951827661,6.4052,142.22,142.14,0.14216157]
[1750951828031,6.4052,142.22,142.14,7.17737752]
[1750951828435,6.4052,142.22,142.14,0.14216157]
[1750951828658,6.4052,142.22,142.14,18.79181043]
[1750951828840,6.4052,142.22,142.14,25.82711293]
[1750951829566,6.4052,142.22,142.18,16.08350381]
[1750951829768,6.4052,142.22,142.14,25.82711293]
[1750951829945,6.4052,142.22,142.13,0.02]
[1750951830149,6.4052,142.22,142.14,16.08350381]
[1750951830370,20.46709302,142.22,142.13,18.66964886]
[1750951830667,20.46709302,142.22,142.13,0.02]
[1750951831236,38.04549268,142.22,142.13,0.02]
[1750951831438,0.5,142.21,142.13,0.02]
[1750951831839,0.5,142.21,142.15,16.08350381]
[1750951832040,6.4052,142.22,142.2,16.08350381]
[1750951832240,6.4052,142.22,142.17,18.64964886]
[1750951832451,6.4052,142.22,142.15,0.14216157]
[1750951832933,6.4052,142.22,142.16,16.08350381]
[1750951833132,6.4052,142.22,142.13,0.02]
[1750951833337,6.4052,142.22,142.17,16.08350381]
[1750951833648,6.4052,142.22,142.14,0.14216157]
[1750951833955,13.43661253,142.22,142.15,16.08350381]
[1750951834266,6.4052,142.22,142.13,0.16216157]
[1750951834463,6.4052,142.22,142.13,18.81181043]
[1750951834670,6.4052,142.22,142.13,0.16216157]
[1750951834960,6.4052,142.22,142.17,16.08350381]
[1750951835159,6.4052,142.22,142.13,18.81181043]
[1750951835553,6.4052,142.22,142.16,0.14216157]
[1750951835737,13.435601,142.26,142.16,0.14216157]
[1750951835938,20.46500101,142.26,142.16,0.14216157]
[1750951837062,20.46500101,142.26,142.15,18.64964886]
[1750951837246,20.46500101,142.26,142.13,25.84743662]
[1750951837456,25.60521367,142.26,142.13,18.81181043]
[1750951837644,44.45188676,142.26,142.16,10.19381712]
[1750951837847,5.14021266,142.25,142.14,0.14216157]
[1750951838063,20.46500101,142.26,142.14,0.14216157]
[1750951838264,20.46500101,142.26,142.17,10.19381712]
[1750951838470,20.46500101,142.26,142.14,0.14216157]
[1750951838874,20.46500101,142.26,142.16,0.14216157]
[1750951839053,20.46500101,142.26,142.14,7.1773916]
[1750951839254,20.46500101,142.26,142.15,18.79181043]
[1750951839658,20.46500101,142.26,142.14,18.79181043]
[1750951839862,38.03845806,142.26,142.13,0.02]
[1750951840061,5.14021266,142.25,142.13,18.66964886]
[1750951840366,5.14021266,142.25,142.14,10.19381712]
[1750951840557,7.7383,142.24,142.13,10.21381712]
[1750951840765,7.03086549,142.23,142.13,0.02]
[1750951841159,7.03086549,142.23,142.14,10.19381712]
[1750951841352,14.76880997,142.24,142.16,10.19381712]
[1750951841556,0.5,142.22,142.13,0.02]
[1750951841755,7.7383,142.24,142.13,0.02]
[1750951842873,14.76872816,142.24,142.14,18.79181043]
[1750951843072,7.7383,142.24,142.14,18.79181043]
[1750951843252,14.76876495,142.24,142.14,18.79181043]
[1750951843652,7.7383,142.24,142.14,18.79181043]
[1750951844054,14.76875787,142.24,142.14,18.79181043]
[1750951844566,14.76875787,142.24,142.14,0.14216157]
[1750951844756,32.34468587,142.24,142.13,10.21381712]
[1750951844962,32.34468587,142.24,142.13,0.02]
[1750951845472,6.2407,142.23,142.13,0.02]
[1750951845984,6.2407,142.23,142.13,10.21381712]
[1750951846274,6.2407,142.23,142.13,0.02]
[1750951846684,0.5,142.22,142.13,0.02]
[1750951846858,7.03185429,142.21,142.13,0.02]
[1750951847175,7.53144079,142.22,142.13,0.02]
[1750951849274,25.10984045,142.22,142.13,0.02]
[1750951849475,1.5102,142.2,142.13,0.02]
[1750951849679,6.2346,142.19,142.13,0.02]
[1750951850054,2.816604,142.18,142.13,0.02]
[1750951850251,7.03383273,142.17,142.13,0.02]
[1750951851366,7.03383273,142.17,142.12,0.02]
[1750951851367,7.3313,142.16,142.12,0.02]
[1750951854171,7.3313,142.16,142.11,0.02]
[1750951854172,14.965,142.12,142.11,0.02]
[1750951859288,22.00130734,142.12,142.11,0.02]
[1750951859587,6.0925,142.11,142.07,0.02]
[1750951860469,7.03729767,142.1,142.07,0.02]
[1750951860681,1.5328,142.09,142.07,0.02]
[1750951860864,2.0328,142.09,142.07,0.02]
[1750951861296,2.0328,142.09,142.05,0.02]
[1750951861297,0.8246,142.08,142.05,0.02]
[1750951861464,11.19410298,142.11,142.05,0.02]
[1750951861670,11.19410298,142.11,142.05,18.66964886]
[1750951861671,6.0925,142.11,142.05,18.66964886]
[1750951861902,6.0925,142.11,142.05,0.02]
[1750951862406,6.0925,142.11,142.03,10.19381712]
[1750951862407,6.2389,142.09,141.92,1.565]
[1750951862694,6.2389,142.07,141.94,10.19381712]
[1750951862866,42.36,142.06,141.92,26.2266785]
[1750951863067,42.36,142.06,141.97,10.19381712]
[1750951863287,42.36,142.06,141.92,8.61112044]
[1750951863475,42.36,142.06,141.96,10.19381712]
[1750951863789,42.36,142.06,141.93,28.84346598]
[1750951864089,42.36,142.06,141.96,10.19381712]
[1750951864304,6.2389,142.07,141.94,26.0]
[1750951864470,6.2389,142.07,141.97,19.35402302]
[1750951864670,14.965,142.1,142.06,10.19381712]
[1750951864944,14.965,142.1,142.02,10.19381712]
[1750951864945,14.965,142.1,142.03,44.64964886]
[1750951865207,14.965,142.1,142.05,26.0]
[1750951865373,14.965,142.1,142.06,0.14216157]
[1750951865560,14.965,142.1,142.02,10.19381712]
[1750951865761,14.965,142.1,142.08,10.19381712]
[1750951866273,14.965,142.1,142.05,18.64964886]
[1750951866274,14.965,142.1,142.05,10.19381712]
[1750951866469,6.2991,142.09,141.98,18.64964886]
[1750951866778,6.2991,142.09,141.96,1.6235]
[1750951866986,6.2991,142.09,141.97,16.14307791]
[1750951867288,6.2991,142.09,141.92,22.04]
[1750951867485,18.64964886,142.07,141.92,15.88]
[1750951867699,6.4458,142.05,141.94,16.14307791]
[1750951867869,11.55082204,142.05,141.92,15.88]
[1750951868189,6.1582,142.02,141.89,1.481037]
[1750951868389,24.64615167,142.01,141.89,1.481037]
[1750951868788,18.79181043,142.0,141.89,1.481037]
[1750951869102,18.79181043,141.98,141.89,1.481037]
[1750951869305,18.79181043,141.96,141.89,1.481037]
[1750951869596,0.14216157,141.96,141.89,1.481037]
[1750951869805,42.12,141.96,141.89,1.481037]
[1750951870384,42.12,141.96,141.89,17.62411491]
[1750951870682,13.16387126,141.99,141.91,16.14307791]
[1750951870877,18.24117588,141.99,141.89,1.481037]
[1750951871114,35.8480496,141.99,141.89,1.481037]
[1750951871478,11.19830462,141.99,141.89,1.481037]
[1750951871712,11.19830462,141.99,141.91,16.14307791]
[1750951871713,42.0,141.98,141.91,16.14307791]
[1750951871886,6.121,141.99,141.94,16.14307791]
[1750951872203,8.0586287,142.04,141.9,18.64964886]
[1750951872204,8.133,142.04,141.96,16.14307791]
[1750951872372,17.622251,142.03,141.91,18.64964886]
[1750951872578,13.20474001,142.04,141.94,16.14307791]
[1750951872806,13.20474001,142.04,141.91,43.31303878]
[1750951872989,34.35160501,142.04,141.96,16.14307791]
[1750951873380,13.20474001,142.04,141.96,16.14307791]
[1750951873577,14.965,142.0,141.98,16.14307791]
[1750951873778,14.965,142.0,141.92,0.14216157]
[1750951874007,14.965,142.0,141.96,16.14307791]
[1750951874901,14.965,142.0,141.92,0.14216157]
[1750951875074,14.965,142.0,141.96,16.14307791]
[1750951875278,14.965,142.0,141.97,16.14307791]
[1750951875501,14.965,142.0,141.93,7.04572676]
[1750951875502,14.965,142.0,141.99,16.14307791]
[1750951875702,14.965,142.0,141.95,0.14216157]
[1750951875874,14.965,142.0,141.99,16.14307791]
[1750951876078,14.965,142.0,141.99,34.79272677]
[1750951876290,14.965,142.0,141.95,0.14216157]
[1750951876506,14.965,142.0,141.95,18.79181043]
[1750951876820,14.965,142.0,141.99,16.14307791]
[1750951877189,14.965,142.0,141.99,23.18582739]
[1750951877394,14.965,142.0,141.96,16.14307791]
[1750951877597,14.965,142.0,141.98,16.14307791]
[1750951878015,14.965,142.0,141.97,16.14307791]
[1750951878225,14.965,142.0,141.95,28.05298656]
[1750951878521,14.965,142.0,141.96,16.14307791]
[1750951879213,14.965,142.0,141.95,28.05298656]
[1750951879409,14.965,142.0,141.96,18.64964886]
[1750951879608,14.965,142.0,141.97,0.14216157]
[1750951879818,14.965,142.0,141.95,35.80186569]
[1750951879819,14.965,142.0,141.95,35.09739229]
[1750951880117,14.965,142.0,141.98,16.14307791]
[1750951880525,14.965,142.0,141.92,7.04611794]
[1750951880699,14.965,142.0,141.93,18.64964886]
[1750951880901,14.965,142.0,141.94,7.04523037]
[1750951881098,14.965,142.0,141.99,16.14307791]
[1750951881539,14.965,142.0,141.95,19.49628383]
[1750951881705,14.965,142.0,141.99,16.14307791]
[1750951881905,14.965,142.0,141.95,19.49628383]
[1750951882104,14.965,142.0,141.96,0.14216157]
[1750951882301,14.965,142.0,141.99,34.93488834]
[1750951883010,14.965,142.0,141.99,41.97763782]
[1750951883205,14.965,142.0,141.99,25.83455991]
[1750951883411,14.965,142.0,141.99,42.68191276]
[1750951883813,6.2515,142.13,142.0,18.79181043]
[1750951884018,13.28747474,142.13,142.01,0.14216157]
[1750951884329,13.28747474,142.13,142.05,16.14307791]
[1750951884626,6.2515,142.13,142.07,16.14307791]
[1750951885018,6.2515,142.13,142.05,18.64964886]
[1750951885321,6.2515,142.13,142.07,16.14307791]
[1750951885901,0.04,142.11,142.07,16.14307791]
[1750951886314,0.04,142.11,142.05,18.64964886]
[1750951886497,0.04,142.11,142.07,16.14307791]
[1750951886704,0.04,142.11,142.05,18.64964886]
[1750951886899,0.04,142.11,142.04,18.64964886]
[1750951887130,0.04,142.11,142.07,16.14307791]
[1750951887305,0.04,142.11,142.09,16.14307791]
[1750951887506,0.04,142.11,142.04,25.68991913]
[1750951887507,0.04,142.11,142.1,35.49645653]
[1750951887706,0.04,142.11,142.1,35.6386181]
[1750951888014,0.04,142.11,142.1,19.49554019]
[1750951888202,0.04,142.11,142.1,28.99132128]
[1750951889031,0.04,142.11,142.1,36.02861895]
[1750951889233,0.04,142.11,142.1,36.73234871]
[1750951890021,0.04,142.11,142.08,0.14216157]
[1750951890214,0.04,142.11,142.1,16.13011987]
[1750951890410,0.04,142.11,142.08,16.13011987]
[1750951891128,0.04,142.11,142.05,18.64964886]
[1750951891638,0.04,142.11,142.03,22.00066554]
[1750951891639,0.04,142.11,142.06,18.64964886]
[1750951891805,0.04,142.11,142.07,16.13011987]
[1750951892004,0.04,142.11,142.04,25.83160585]
[1750951892005,0.04,142.11,142.05,18.64964886]
[1750951892750,0.04,142.11,142.08,16.13011987]
[1750951893039,0.04,142.11,142.09,16.13011987]
[1750951893509,0.04,142.11,142.05,88.7]
[1750951894212,0.04,142.11,142.04,16.13011987]
[1750951896211,24.63227531,142.09,141.99,16.13011987]
[1750951896542,24.63227531,142.09,141.98,16.13011987]
[1750951896705,24.63227531,142.09,141.97,16.13011987]
[1750951896910,29.72287838,142.09,141.97,16.13011987]
[1750951897132,24.63227531,142.09,141.97,16.13011987]
[1750951897336,24.63227531,142.09,141.95,14.96]
[1750951898312,7.03779294,142.09,141.96,18.79181043]
[1750951898516,7.03779294,142.09,141.97,0.14216157]
[1750951899252,7.03779294,142.09,142.01,16.13011987]
[1750951899428,7.03779294,142.09,141.97,7.18570668]
[1750951899773,24.63227531,142.09,141.96,18.64964886]
[1750951899924,24.63227531,142.09,141.95,14.96]
[1750951900130,6.144,142.07,141.94,28.77111697]
[1750951900339,1.5569,142.05,141.94,28.77111697]
[1750951900943,1.5569,142.05,141.94,35.81617932]
[1750951901128,1.5569,142.05,141.95,18.79181043]
[1750951901934,0.5,142.04,141.98,16.13011987]
[1750951902132,0.5,142.04,141.94,44.90123684]
[1750951902540,0.5,142.04,141.95,16.13011987]
[1750951902837,8.59673758,142.05,141.94,28.77111697]
[1750951903357,1.5569,142.05,141.99,16.13011987]
[1750951903835,1.5569,142.05,142.0,16.13011987]
[1750951904148,1.5569,142.05,141.95,18.79181043]
[1750951904448,1.5569,142.05,142.0,16.13011987]
[1750951904650,1.5569,142.05,141.96,0.14216157]
[1750951904849,1.5569,142.05,142.0,16.13011987]
[1750951905229,1.5569,142.05,142.01,16.13011987]
[1750951905538,6.144,142.07,141.98,18.64964886]
[1750951905734,6.144,142.07,142.01,16.13011987]
[1750951905936,6.144,142.07,142.04,16.13011987]
[1750951906135,0.04,142.11,142.06,16.13011987]
[1750951906337,0.04,142.11,141.99,18.79181043]
[1750951906545,7.07694374,142.11,141.99,18.79181043]
[1750951906929,0.5,142.1,141.99,18.79181043]
[1750951907354,7.53742469,142.1,142.01,18.64964886]
[1750951907532,7.53742469,142.1,141.99,7.18476612]
[1750951907839,25.13066888,142.1,141.97,7.04343169]
[1750951908039,8.0345,142.09,141.95,18.64964886]
[1750951908240,8.0345,142.09,141.94,28.77111697]
[1750951908454,8.0345,142.09,141.96,16.13011987]
[1750951908643,8.0345,142.09,141.97,16.13011987]
[1750951909036,8.0345,142.09,141.96,16.13011987]
[1750951909236,24.634009,142.08,141.97,16.13011987]
[1750951909753,7.03828828,142.08,141.95,18.79181043]
[1750951910060,7.03828828,142.08,141.99,16.13011987]
[1750951910228,7.03828828,142.08,142.01,16.13011987]
[1750951910832,7.03828828,142.08,142.02,16.13011987]
[1750951911034,7.03828828,142.08,142.01,16.13011987]
[1750951911229,15.07236155,142.09,141.97,18.64964886]
[1750951911449,15.07236155,142.09,142.02,16.13011987]
[1750951911667,8.0345,142.09,142.03,16.13011987]
[1750951911832,0.5,142.08,142.0,18.64964886]
[1750951912159,0.5,142.08,142.05,16.13011987]
[1750951912362,0.5,142.08,142.0,107.34964886]
[1750951912669,15.07242108,142.09,142.01,16.13011987]
[1750951912856,8.0345,142.09,142.02,16.13011987]
[1750951913172,8.0345,142.09,142.04,16.13011987]
[1750951913468,6.4344,142.09,142.03,18.64964886]
[1750951913642,6.4344,142.09,142.06,16.13011987]
[1750951913959,6.4344,142.09,142.07,16.13011987]
[1750951914260,0.04,142.11,142.08,16.13011987]
[1750951914441,0.04,142.11,142.07,88.7]
[1750951914645,0.04,142.11,142.07,104.83011987]
[1750951915155,7.07681632,142.11,142.01,16.13011987]
[1750951915357,0.04,142.11,142.01,16.13011987]
[1750951915843,0.04,142.11,141.99,18.64964886]
[1750951916027,0.04,142.11,142.01,16.13011987]
[1750951916231,0.04,142.11,142.04,16.13011987]
[1750951916536,0.04,142.11,142.07,16.13011987]
[1750951916934,0.04,142.11,142.06,16.13011987]
[1750951917488,0.04,142.11,142.01,18.64964886]
[1750951917639,0.04,142.11,141.99,18.64964886]
[1750951917831,0.04,142.11,142.0,16.13011987]
[1750951918032,0.5,142.1,141.99,16.13011987]
[1750951918245,6.3952,142.08,141.93,0.02]
[1750951918451,6.3952,142.05,141.93,0.02]
[1750951918648,46.9552,142.05,141.93,0.02]
[1750951918853,5.12281371,142.04,141.93,0.02]
[1750951919048,5.12281371,142.04,141.93,16.15011987]
[1750951919254,7.04076603,142.03,141.93,0.02]
[1750951919829,7.04076603,142.03,141.93,16.15011987]
[1750951920032,7.04076603,142.03,141.93,0.02]